bitfinex/quotes_SOLUSD_20220226
["timestamp","ask_amount","ask_price","bid_price","bid_amount"]
[1645910478430,22.6956,91.918,91.832,24.4322]
[1645910478431,22.6956,91.918,91.833,2.90002425]
[1645910478630,22.6956,91.918,91.833,5.64681346]
[1645910478829,22.6956,91.918,91.834,2.74678921]
[1645910479028,22.6956,91.918,91.834,5.25998267]
[1645910479229,22.6956,91.918,91.834,12.93998267]
[1645910479429,22.6956,91.918,91.835,111.84678921]
[1645910479628,22.6956,91.918,91.841,3.03817158]
[1645910481730,16.3355,91.91,91.84,15.86]
[1645910481931,16.3355,91.91,91.833,112.2]
[1645910482732,16.3355,91.91,91.81,24.3663]
[1645910482733,110.93887688,91.909,91.81,24.3663]
[1645910482930,110.93887688,91.909,91.815,24.7362]
[1645910482931,16.3445,91.89,91.815,24.7362]
[1645910483132,51.48489766,91.889,91.815,24.7362]
[1645910483335,1.369603,91.888,91.815,24.7362]
[1645910484135,16.3447,91.87,91.785,112.2]
[1645910484333,164.37305809,91.869,91.786,22.829]
[1645910484533,1.36241405,91.868,91.786,22.829]
[1645910484933,1.36241405,91.868,91.773,24.1498]
[1645910485135,1.77311173,91.865,91.752,2.55640992]
[1645910485334,110.51995775,91.859,91.752,2.55640992]
[1645910485536,1.49083122,91.858,91.752,2.55640992]
[1645910486535,16.3514,91.85,91.752,2.55640992]
[1645910486735,81.32087274,91.849,91.752,2.55640992]
[1645910488137,1.80805133,91.848,91.752,2.55640992]
[1645910488544,16.3504,91.84,91.751,22.6508]
[1645910489738,16.3504,91.84,91.752,2.80132305]
[1645910492440,16.3504,91.84,91.761,109.1]
[1645910492642,16.3504,91.84,91.763,109.1]
[1645910492839,16.3504,91.84,91.764,2.56627932]
[1645910493842,16.3504,91.84,91.77,16.3463]
[1645910494040,16.3504,91.84,91.771,2.34829608]
[1645910494440,16.3504,91.84,91.771,109.1]
[1645910494641,81.32087274,91.849,91.772,2.34716024]
[1645910494840,81.32087274,91.849,91.773,24.2739]
[1645910495140,81.32087274,91.849,91.774,3.09448636]
[1645910496545,16.3477,91.84,91.774,3.09448636]
[1645910496943,16.3477,91.84,91.773,24.2739]
[1645910498743,16.3477,91.84,91.774,2.49323802]
[1645910500044,58.31267274,91.849,91.774,2.49323802]
[1645910500843,58.31267274,91.849,91.773,24.2739]
[1645910501746,16.3477,91.84,91.773,24.2739]
[1645910501949,58.31267274,91.849,91.774,2.28964376]
[1645910505749,15.86,91.91,91.774,8.08964376]
[1645910505948,1.77869695,91.978,91.775,151.83998331]
[1645910506151,32.5656,91.97,91.79,15.86]
[1645910506351,54.4351,91.97,91.801,176.8224049]
[1645910506553,336.69833982,92.01,91.821,174.46]
[1645910506753,336.69833982,92.01,91.851,174.46]
[1645910506754,1.74574571,92.009,91.851,174.46]
[1645910507058,1.36666727,92.009,91.881,109.1]
[1645910507278,4.30270683,92.074,91.883,109.1]
[1645910507451,15.86,92.06,91.891,109.1]
[1645910507752,53.71299751,92.027,91.92,198.19]
[1645910507952,53.71299751,92.027,91.93,15.86]
[1645910508150,53.71299751,92.027,91.931,3.10996466]
[1645910508351,53.71299751,92.027,91.931,3.02908694]
[1645910508556,53.71299751,92.027,91.891,2.76230245]
[1645910508750,1.78790306,92.026,91.891,2.76230245]
[1645910508951,53.19120794,92.011,91.891,2.76230245]
[1645910509250,1.63171354,92.01,91.89,15.86]
[1645910509450,23.68991466,91.992,91.89,15.86]
[1645910509653,53.80237567,91.991,91.891,2.92912832]
[1645910510053,1.62678851,91.99,91.891,2.92912832]
[1645910510252,51.95007485,91.991,91.856,4.35]
[1645910510253,1.56607469,91.978,91.856,4.35]
[1645910510453,49.21909507,91.977,91.863,2.9050375]
[1645910511056,0.35947327,91.979,91.871,109.1]
[1645910511258,0.35947327,91.979,91.881,109.1]
[1645910511460,0.35947327,91.979,91.882,7.32444728]
[1645910511656,0.35947327,91.979,91.9,198.19]
[1645910511857,0.35947327,91.979,91.91,214.05]
[1645910512057,0.35947327,91.979,91.911,2.40687491]
[1645910512657,0.35947327,91.979,91.91,15.86]
[1645910512858,0.35947327,91.979,91.911,3.00537319]
[1645910513059,0.35947327,91.979,91.912,2.74678921]
[1645910513359,0.35947327,91.979,91.911,3.00537319]
[1645910514060,0.35947327,91.979,91.89,15.86]
[1645910514259,0.35947327,91.979,91.891,2.7094073]
[1645910514459,1.87386585,91.979,91.882,4.35]
[1645910514659,48.09372713,91.978,91.882,4.35]
[1645910514880,1.39874393,91.977,91.882,4.35]
[1645910515077,1.73500984,91.976,91.853,2.27234311]
[1645910515280,54.68431823,91.949,91.853,2.27234311]
[1645910515479,63.33431823,91.949,91.853,2.27234311]
[1645910515683,1.47979528,91.948,91.852,23.8012]
[1645910516079,1.47979528,91.948,91.832,2.91949809]
[1645910516581,16.3381,91.94,91.832,2.91949809]
[1645910516781,54.68431823,91.949,91.833,7.09978921]
[1645910516982,54.68431823,91.949,91.833,12.45978921]
[1645910517181,54.68431823,91.949,91.834,41.51857246]
[1645910517383,54.68431823,91.949,91.835,2.59226291]
[1645910517581,54.68431823,91.949,91.835,44.11083537]
[1645910517781,54.68431823,91.949,91.84,16.3261]
[1645910517980,54.68431823,91.949,91.85,15.86]
[1645910518180,54.68431823,91.949,91.851,3.09858184]
[1645910518580,54.68431823,91.949,91.851,5.84537105]
[1645910518781,54.68431823,91.949,91.842,4.352]
[1645910518782,1.76694928,91.948,91.842,4.352]
[1645910519281,1.76694928,91.948,91.832,2.97849261]
[1645910519681,1.76694928,91.948,91.832,5.72528182]
[1645910519884,54.68431823,91.949,91.832,5.72528182]
[1645910520082,54.68431823,91.949,91.832,12.45528182]
[1645910520286,54.68431823,91.949,91.834,2.99658926]
[1645910520583,32.1907,91.99,91.84,214.5177]
[1645910520784,1.49194265,91.997,91.85,15.86]
[1645910520983,1.49194265,91.997,91.851,2.71129139]
[1645910521382,51.99704851,91.996,91.851,2.71129139]
[1645910521582,15.86,91.99,91.851,2.71129139]
[1645910521884,1.45506292,91.989,91.851,2.71129139]
[1645910522081,16.3326,91.97,91.851,3.04307182]
[1645910522282,43.78926872,91.969,91.842,4.352]
[1645910522485,1.84696875,91.968,91.842,4.352]
[1645910522883,1.75733382,91.994,91.843,2.74678921]
[1645910523085,0.43468,92.023,91.85,198.19]
[1645910523292,0.43468,92.023,91.881,111.99608684]
[1645910523487,0.43468,92.023,91.892,2.89374061]
[1645910523684,0.43468,92.023,91.922,2.98247695]
[1645910523883,51.15956113,92.022,91.931,2.3348003]
[1645910524085,1.36636385,92.021,91.894,2.60111929]
[1645910524487,1.69082544,92.019,91.894,2.60111929]
[1645910525090,1.69082544,92.019,91.895,4.35]
[1645910525289,1.69082544,92.019,91.895,7.09678921]
[1645910525487,1.69082544,92.019,91.939,0.91275618]
[1645910525789,1.40616766,92.014,91.939,0.91275618]
[1645910525987,51.15956113,92.022,91.939,0.91275618]
[1645910526190,1.75977316,92.021,91.939,0.91275618]
[1645910526589,16.3265,92.0,91.939,0.91275618]
[1645910526787,60.55627619,91.999,91.939,0.91275618]
[1645910526987,1.51329478,91.998,91.939,0.91275618]
[1645910528291,1.51329478,91.998,91.855,4.349]
[1645910528292,1.79536504,91.989,91.855,4.349]
[1645910528491,1.79536504,91.989,91.84,15.86]
[1645910528492,47.08970939,91.969,91.841,4.351]
[1645910528891,24.27898825,91.968,91.841,4.351]
[1645910529094,1.35755444,91.967,91.812,4.352]
[1645910529494,16.3365,91.94,91.812,4.352]
[1645910529692,16.3365,91.94,91.813,2.74678921]
[1645910529892,61.35649293,91.939,91.814,4.353]
[1645910530097,59.55939519,91.939,91.814,4.353]
[1645910530293,59.55939519,91.939,91.815,2.74678921]
[1645910531495,59.55939519,91.939,91.821,109.1]
[1645910531696,59.55939519,91.939,91.83,15.86]
[1645910531895,59.55939519,91.939,91.831,2.43141172]
[1645910532095,59.55939519,91.939,91.831,111.53141172]
[1645910532394,59.55939519,91.939,91.834,2.48219628]
[1645910532796,59.55939519,91.939,91.836,109.1]
[1645910533099,59.55939519,91.939,91.851,2.96579392]
[1645910533595,59.55939519,91.939,91.851,5.71258313]
[1645910533996,1.55000276,91.938,91.851,2.74678921]
[1645910534195,1.55000276,91.938,91.834,2.74678921]
[1645910536597,1.71176687,91.929,91.82,15.86]
[1645910536997,1.71176687,91.929,91.814,4.353]
[1645910537399,1.71176687,91.929,91.815,2.74678921]
[1645910537598,56.31049126,91.918,91.815,2.74678921]
[1645910537800,109.1,91.917,91.814,4.353]
[1645910537999,1.72137199,91.916,91.814,4.353]
[1645910539099,16.3385,91.91,91.814,4.353]
[1645910540099,1.70205516,91.909,91.814,4.353]
[1645910540304,16.3404,91.9,91.814,4.353]
[1645910540502,52.98847983,91.899,91.814,4.353]
[1645910540701,1.56774425,91.898,91.814,4.353]
[1645910540900,51.54944065,91.899,91.814,4.353]
[1645910541600,16.3417,91.89,91.814,4.353]
[1645910542001,51.54944065,91.899,91.814,4.353]
[1645910543601,16.3412,91.89,91.814,4.353]
[1645910546005,51.54944065,91.899,91.814,4.353]
[1645910549215,70.318,91.93,91.821,109.1]
[1645910549414,54.4443,91.95,91.822,2.44703222]
[1645910549615,54.4443,91.95,91.824,109.1]
[1645910549814,54.4443,91.95,91.825,2.41153589]
[1645910550115,57.11897572,91.949,91.831,109.1]
[1645910550314,57.11897572,91.949,91.842,2.58681466]
[1645910550532,57.11897572,91.949,91.843,109.1]
[1645910550716,57.11897572,91.949,91.842,2.58681466]
[1645910551119,16.3303,91.94,91.842,2.58681466]
[1645910552319,15.251229,91.94,91.842,2.58681466]
[1645910552920,15.251229,91.94,91.831,2.43575064]
[1645910555231,109.1,91.939,91.831,2.43575064]
[1645910555431,109.1,91.939,91.8,14.06026454]
[1645910555432,16.3388,91.91,91.81,32.198]
[1645910555633,47.60408508,91.909,91.824,2.4645154]
[1645910556150,53.35408508,91.909,91.824,2.4645154]
[1645910557451,16.3398,91.89,91.824,2.4645154]
[1645910557752,42.7218744,91.889,91.824,2.4645154]
[1645910561655,42.7218744,91.889,91.831,0.15297603]
[1645910562657,16.3408,91.88,91.831,0.15297603]
[1645910565459,16.3381,91.9,91.831,0.15297603]
[1645910565760,22.7733,91.991,91.832,2.74678921]
[1645910565957,22.7733,91.991,91.833,105.7223]
[1645910566158,22.7733,91.991,91.834,176.78782036]
[1645910566358,45.84295178,91.99,91.835,2.9502364]
[1645910566557,45.84295178,91.99,91.836,174.46]
[1645910566757,16.3257,91.97,91.851,109.1]
[1645910566957,57.16179683,91.969,91.852,2.34429994]
[1645910567158,57.16179683,91.969,91.854,2.55838341]
[1645910567361,57.16179683,91.969,91.855,109.1]
[1645910567559,57.16179683,91.969,91.861,109.1]
[1645910567864,57.16179683,91.969,91.871,2.38900486]
[1645910568058,57.16179683,91.969,91.854,4.352]
[1645910568458,57.16179683,91.969,91.853,2.31725782]
[1645910568858,166.26179683,91.969,91.853,2.31725782]
[1645910569058,57.16179683,91.969,91.853,2.31725782]
[1645910569259,16.3307,91.94,91.86,16.3307]
[1645910569460,51.51446365,91.939,91.861,2.94043829]
[1645910570560,51.51446365,91.939,91.871,3.03839859]
[1645910571967,51.51446365,91.939,91.853,4.352]
[1645910572169,51.51446365,91.939,91.853,69.712]
[1645910572372,0.35947327,91.979,91.872,2.74678921]
[1645910572569,0.35947327,91.979,91.873,109.1]
[1645910572769,0.35947327,91.979,91.874,2.32369295]
[1645910572969,0.35947327,91.979,91.89,16.3238]
[1645910573169,0.35947327,91.979,91.892,3.11980296]
[1645910573373,0.35947327,91.979,91.893,132.9489]
[1645910573577,0.35947327,91.979,91.894,2.65952268]
[1645910573770,0.35947327,91.979,91.894,111.75952268]
[1645910573970,0.35947327,91.979,91.895,2.68904246]
[1645910574170,0.35947327,91.979,91.895,5.43583167]
[1645910574569,0.35947327,91.979,91.896,2.74678921]
[1645910574998,0.35947327,91.979,91.901,109.1]
[1645910575199,0.35947327,91.979,91.902,2.37460989]
[1645910575399,0.35947327,91.979,91.903,109.1]
[1645910575599,0.35947327,91.979,91.904,2.74480374]
[1645910575800,0.35947327,91.979,91.905,174.46]
[1645910576003,0.35947327,91.979,91.921,109.1]
[1645910576203,0.35947327,91.979,91.923,109.1]
[1645910576397,0.35947327,91.979,91.924,2.75601179]
[1645910576596,0.35947327,91.979,91.925,109.1]
[1645910576798,0.35947327,91.979,91.926,2.98119362]
[1645910577199,0.35947327,91.979,91.932,3.03964772]
[1645910583003,0.35947327,91.979,91.923,2.30789948]
[1645910587007,0.35947327,91.979,91.93,16.3182]
[1645910587209,0.35947327,91.979,91.931,2.52679838]
[1645910590711,0.35947327,91.979,91.923,2.4730521]
[1645910594517,0.35947327,91.979,91.93,16.3184]
[1645910594718,0.35947327,91.979,91.931,2.32099679]
[1645910594920,0.35947327,91.979,91.931,111.42099679]
[1645910595122,0.35947327,91.979,91.932,2.60360309]
[1645910595320,0.35947327,91.979,91.933,109.1]
[1645910595520,0.35947327,91.979,91.934,2.6408606]
[1645910595922,0.35947327,91.979,91.937,2.51131972]
[1645910597325,0.35947327,91.979,91.938,2.74678921]
[1645910597727,0.35947327,91.979,91.937,2.51131972]
[1645910607855,0.35947327,91.979,91.935,24.1643]
[1645910608056,6.45947327,91.979,91.923,2.40999316]
[1645910608257,42.69122741,91.978,91.923,2.40999316]
[1645910608656,42.69122741,91.978,91.895,24.7022]
[1645910608856,42.69122741,91.978,91.896,3.05163646]
[1645910609056,42.69122741,91.978,91.875,4.35]
[1645910609260,42.69122741,91.978,91.867,2.51814749]
[1645910609755,1.50813434,91.977,91.867,2.51814749]
[1645910610456,16.3293,91.95,91.867,2.51814749]
[1645910610656,58.21043233,91.949,91.867,2.51814749]
[1645910611962,16.3313,91.94,91.867,2.51814749]
[1645910613460,24.1813,91.94,91.867,2.51814749]
[1645910614060,110.59180758,91.939,91.858,0.54147608]
[1645910614263,16.3388,91.92,91.858,0.54147608]
[1645910614462,59.87877715,91.919,91.858,0.54147608]
[1645910614661,59.42075758,91.919,91.858,0.54147608]
[1645910615461,16.3388,91.91,91.858,0.54147608]
[1645910617567,1.36426946,91.909,91.858,0.54147608]
[1645910617763,16.3402,91.9,91.858,0.54147608]
[1645910617965,56.59705713,91.899,91.858,0.54147608]
[1645910621569,16.3398,91.89,91.858,0.54147608]
[1645910621772,56.59705713,91.899,91.858,0.54147608]
[1645910623068,56.59705713,91.899,91.845,0.41017385]
[1645910627374,16.3389,91.89,91.845,0.41017385]
[1645910630978,16.3368,91.91,91.845,0.41017385]
[1645910631177,5.0,91.982,91.846,109.1]
[1645910631178,54.4484,91.94,91.846,109.1]
[1645910631378,54.4484,91.94,91.847,49.96241028]
[1645910631578,54.4484,91.94,91.848,2.33542835]
[1645910631982,60.41994517,91.936,91.848,2.33542835]
[1645910632579,16.3331,91.93,91.851,109.1]
[1645910632779,16.3331,91.93,91.852,2.88739551]
[1645910633583,60.41994517,91.936,91.852,2.88739551]
[1645910633783,60.41994517,91.936,91.86,16.3306]
[1645910633983,60.41994517,91.936,91.861,3.06053089]
[1645910634483,60.41994517,91.936,91.89,0.15297603]
[1645910642814,13.07,92.01,91.89,0.15297603]
[1645910643015,13.07,92.02,91.891,148.11782837]
[1645910643214,24.8407,92.027,91.893,174.46]
[1645910643414,24.8407,92.027,91.894,2.5928707]
[1645910643713,24.8407,92.027,91.896,3.04080859]
[1645910643914,54.4025,92.02,91.92,16.3193]
[1645910644118,54.4025,92.02,91.921,2.6714529]
[1645910644315,54.4025,92.02,91.896,2.6133985]
[1645910644515,58.70499014,92.022,91.896,2.6133985]
[1645910644516,22.12638667,92.014,91.896,2.6133985]
[1645910644717,22.12638667,92.014,91.901,2.74678921]
[1645910644914,22.12638667,92.014,91.896,2.6133985]
[1645910645115,24.5846,92.013,91.896,111.7133985]
[1645910645317,54.4095,92.01,91.911,109.1]
[1645910645518,54.4095,92.01,91.9,13.07]
[1645910645519,54.4095,92.01,91.913,109.1]
[1645910645815,54.4095,92.01,91.914,3.03883851]
[1645910646016,22.9625,92.019,91.926,0.15297603]
[1645910646417,16.3186,92.01,91.927,109.1]
[1645910646617,22.9625,92.019,91.928,2.63095042]
[1645910646818,22.9625,92.019,91.926,0.15297603]
[1645910647617,59.61311043,91.989,91.926,0.15297603]
[1645910649918,59.61311043,91.989,91.93,16.3186]
[1645910650118,59.61311043,91.989,91.931,2.45860154]
[1645910650521,22.9625,92.019,91.932,2.42764076]
[1645910650719,22.9625,92.019,91.933,109.1]
[1645910650919,22.9625,92.019,91.934,3.01873048]
[1645910651521,16.3194,92.01,91.934,3.01873048]
[1645910652122,55.1029387,92.018,91.934,3.01873048]
[1645910653619,51.38690234,91.999,91.969,0.15297603]
[1645910655421,51.38690234,91.999,91.97,2.3999746]
[1645910659127,16.3173,92.02,91.97,2.3999746]
[1645910659328,16.3136,92.04,91.97,2.3999746]
[1645910660131,47.85869193,92.022,91.97,2.3999746]
[1645910660533,47.85869193,92.022,91.969,0.15297603]
[1645910660827,0.00947327,91.979,91.969,0.15297603]
[1645910661027,1.81614496,92.048,91.969,0.15297603]
[1645910661028,20.69449594,92.179,92.057,65.36]
[1645910661228,16.1791,92.264,92.14,174.77868145]
[1645910661427,1.354044,92.262,92.161,109.1]
[1645910661639,1.354044,92.262,92.162,2.9922312]
[1645910661828,3.854044,92.262,92.162,2.9922312]
[1645910662026,59.52333406,92.261,92.162,2.9922312]
[1645910662226,59.52333406,92.261,92.161,7.21]
[1645910662427,59.52333406,92.261,92.14,11.34868145]
[1645910662633,59.52333406,92.261,92.171,2.33711785]
[1645910662828,59.52333406,92.261,92.161,2.84368454]
[1645910663228,0.54446368,92.281,92.171,2.63740728]
[1645910663429,6.368e-05,92.281,92.18,15.67]
[1645910663628,1.17197,92.416,92.221,2.58830179]
[1645910663828,5.0,92.393,92.23,15.67]
[1645910664030,5.0,92.363,92.231,2.3280187]
[1645910664229,46.98057597,92.362,92.231,2.3280187]
[1645910664430,46.98057597,92.362,92.195,2.52000821]
[1645910664431,1.75646102,92.358,92.195,2.52000821]
[1645910665030,109.1,92.349,92.17,15.67]
[1645910665232,47.28146625,92.312,92.161,2.51303105]
[1645910665430,1.43259809,92.31,92.171,2.89665595]
[1645910665629,1.43259809,92.31,92.18,15.67]
[1645910665831,1.43259809,92.31,92.181,2.36685002]
[1645910666031,1.85120882,92.309,92.17,15.67]
[1645910666231,47.57381864,92.292,92.151,3.09400161]
[1645910666432,1.78860567,92.289,92.151,3.09400161]
[1645910666633,47.57381864,92.292,92.151,109.1]
[1645910666831,47.57381864,92.292,92.152,2.41143981]
[1645910666832,30.75118217,92.292,92.152,2.41143981]
[1645910667032,23.0871,92.291,92.152,2.41143981]
[1645910667432,1.86576572,92.29,92.152,2.41143981]
[1645910667632,23.0871,92.291,92.152,2.41143981]
[1645910668237,23.0871,92.291,92.161,109.1]
[1645910668433,23.0871,92.291,92.172,3.0898115]
[1645910668632,23.0871,92.291,92.181,2.62442158]
[1645910669132,1.7268302,92.29,92.181,2.62442158]
[1645910670134,16.2782,92.28,92.104,2.97673658]
[1645910670336,31.9482,92.28,92.14,15.67]
[1645910670534,1.53254015,92.279,92.14,15.67]
[1645910670833,46.32562823,92.278,92.14,15.67]
[1645910671033,1.60734262,92.276,92.14,15.67]
[1645910671234,16.2833,92.24,92.14,15.67]
[1645910671538,109.1,92.237,92.08,75.0063]
[1645910671834,1.61603069,92.229,92.08,15.67]
[1645910672033,45.79541438,92.222,92.08,15.67]
[1645910672236,15.67,92.21,92.06,15.67]
[1645910672535,59.25722607,92.199,92.06,15.67]
[1645910672732,15.67,92.19,92.06,15.67]
[1645910672939,1.78156503,92.189,92.06,15.67]
[1645910673136,48.27596503,92.189,92.06,15.67]
[1645910673335,1.68320648,92.188,92.06,15.67]
[1645910673736,1.68320648,92.188,92.061,65.36]
[1645910673936,0.70479787,107.04,92.13,195.93]
[1645910673937,1.57092884,92.329,92.13,195.93]
[1645910674137,5.0,92.353,92.141,109.1]
[1645910674337,5.0,92.343,92.152,2.51751248]
[1645910674536,1.87024235,92.339,92.152,2.51751248]
[1645910674737,58.78789586,92.329,92.152,2.51751248]
[1645910674937,1.61909293,92.327,92.152,2.51751248]
[1645910675237,5.0,92.313,92.15,15.67]
[1645910675441,5.0,92.313,92.11,195.93]
[1645910675442,5.0,92.283,92.13,15.67]
[1645910675637,109.1,92.277,92.13,15.67]
[1645910675837,1.61526332,92.276,92.13,15.67]
[1645910676238,23.3536,92.275,92.13,15.67]
[1645910676438,1.38840433,92.274,92.13,15.67]
[1645910676639,15.67,92.27,92.131,2.92550316]
[1645910676836,1.78910923,92.269,92.131,2.92550316]
[1645910677044,16.2844,92.24,92.13,15.67]
[1645910677236,115.97148945,92.239,92.13,15.67]
[1645910677439,1.75954306,92.238,92.13,15.67]
[1645910677642,1.75954306,92.238,92.094,111.745892]
[1645910677843,1.75954306,92.238,92.101,109.1]
[1645910678043,1.75954306,92.238,92.111,109.1]
[1645910678241,1.30124593,92.238,92.12,13.03]
[1645910678441,114.55648509,92.239,92.12,13.03]
[1645910679041,114.55648509,92.239,92.122,2.59346104]
[1645910679241,114.55648509,92.239,92.121,2.96563112]
[1645910679441,1.59030875,92.238,92.12,13.03]
[1645910679642,1.59030875,92.238,92.121,2.64450454]
[1645910679841,1.59030875,92.238,92.12,13.03]
[1645910680243,16.2808,92.26,92.121,174.46]
[1645910680444,5.0,92.283,92.121,174.46]
[1645910680445,1.82544192,92.41,92.239,13.0]
[1645910680649,0.35400057,92.443,92.251,109.1]
[1645910680943,16.2545,92.42,92.298,11.32400898]
[1645910681145,0.93734688,92.42,92.299,2.47339808]
[1645910681446,52.6940947,92.419,92.3,13.03]
[1645910682045,1.39888016,92.418,92.299,2.47339808]
[1645910682249,1.39888016,92.418,92.298,11.32400898]
[1645910682445,5.0,92.413,92.298,11.32400898]
[1645910682646,13.03,92.4,92.298,11.32400898]
[1645910682850,61.51545221,92.399,92.298,11.32400898]
[1645910683045,1.66292753,92.398,92.298,11.32400898]
[1645910684047,1.66292753,92.398,92.261,2.38341646]
[1645910684247,4.77016653,92.393,92.241,2.67809951]
[1645910684448,50.20455837,92.382,92.241,2.67809951]
[1645910684648,13.03,92.38,92.241,2.67809951]
[1645910684847,1.55370516,92.379,92.241,2.67809951]
[1645910685449,16.2643,92.35,92.241,2.67809951]
[1645910685648,131.15766341,92.349,92.241,2.67809951]
[1645910685851,1.43836047,92.348,92.241,2.67809951]
[1645910686050,1.43836047,92.348,92.221,2.4517647]
[1645910686249,1.43836047,92.348,92.22,13.03]
[1645910686649,1.79450067,92.348,92.221,2.28211529]
[1645910686850,1.79450067,92.348,92.221,2.53969976]
[1645910687052,1.79450067,92.348,92.22,13.03]
[1645910687449,129.70263017,92.349,92.22,13.03]
[1645910687651,16.2664,92.34,92.22,13.03]
[1645910687852,1.49723921,92.339,92.212,3.10387106]
[1645910688056,1.81902772,92.347,92.2,13.03]
[1645910689254,16.2694,92.32,92.2,13.03]
[1645910689455,48.67583449,92.319,92.2,13.03]
[1645910689655,72.62243449,92.319,92.2,13.03]
[1645910689859,72.62243449,92.319,92.2,15.91358414]
[1645910690056,72.62243449,92.319,92.201,2.49111689]
[1645910690357,24.2083,92.318,92.201,2.95330462]
[1645910690558,24.2083,92.318,92.201,3.08653351]
[1645910690757,24.2083,92.318,92.2,13.03]
[1645910693080,24.2083,92.318,92.201,109.1]
[1645910693280,24.2083,92.318,92.202,3.07763414]
[1645910695986,24.2083,92.318,92.203,174.46]
[1645910696186,24.2083,92.318,92.204,2.36314301]
[1645910697286,24.2083,92.318,92.206,174.46]
[1645910697486,24.2083,92.318,92.221,109.1]
[1645910697686,24.2083,92.318,92.222,2.25278042]
[1645910698087,72.62243449,92.319,92.223,174.46]
[1645910698088,48.67583449,92.319,92.223,174.46]
[1645910698490,48.67583449,92.319,92.224,2.62875216]
[1645910699087,48.67583449,92.319,92.226,109.1]
[1645910699288,48.67583449,92.319,92.241,109.1]
[1645910699494,48.67583449,92.319,92.251,109.1]
[1645910699789,48.67583449,92.319,92.252,2.28091596]
[1645910700590,48.67583449,92.319,92.252,111.38091596]
[1645910700792,48.67583449,92.319,92.253,2.75588809]
[1645910701192,48.67583449,92.319,92.231,2.37870486]
[1645910701393,49.0877,92.318,92.221,2.42249124]
[1645910702795,48.5877,92.318,92.221,2.42249124]
[1645910703192,16.269,92.31,92.221,2.42249124]
[1645910703392,16.269,92.31,92.222,3.06518008]
[1645910703595,48.5877,92.318,92.222,3.06518008]
[1645910703893,48.5877,92.318,92.223,109.1]
[1645910704093,48.5877,92.318,92.224,2.34216268]
[1645910704294,48.5877,92.318,92.225,109.1]
[1645910704593,48.67583449,92.319,92.229,111.87174285]
[1645910704793,48.67583449,92.319,92.241,109.1]
[1645910704993,48.67583449,92.319,92.25,16.2575]
[1645910705195,48.52285846,92.319,92.251,2.97514149]
[1645910705394,48.52285846,92.319,92.251,112.07514149]
[1645910705594,48.52285846,92.319,92.252,2.44495034]
[1645910706695,48.52285846,92.319,92.231,3.1058073]
[1645910707695,48.52285846,92.319,92.231,2.61383184]
[1645910707897,48.52285846,92.319,92.23,13.03]
[1645910708095,47.7825,92.318,92.231,109.1]
[1645910708295,47.7825,92.318,92.241,109.1]
[1645910708496,47.7825,92.318,92.242,3.06957914]
[1645910709500,47.7825,92.318,92.25,16.2584]
[1645910709698,47.7825,92.318,92.251,3.00118031]
[1645910711505,47.7825,92.318,92.232,2.46274189]
[1645910711702,47.7825,92.318,92.224,2.27238072]
[1645910711902,47.7825,92.318,92.23,13.03]
[1645910712503,47.7825,92.318,92.232,2.42924438]
[1645910713104,47.7825,92.318,92.233,109.1]
[1645910713306,47.7825,92.318,92.234,3.03888082]
[1645910713504,47.7825,92.318,92.241,109.1]
[1645910713708,47.7825,92.318,92.242,2.57712088]
[1645910714708,47.7825,92.318,92.231,2.8887298]
[1645910714913,47.7825,92.318,92.224,2.52790879]
[1645910715112,47.7825,92.318,92.201,2.63855956]
[1645910715314,47.7825,92.318,92.191,2.55781811]
[1645910715513,47.7825,92.318,92.201,109.1]
[1645910715812,47.7825,92.318,92.203,2.35686411]
[1645910716713,44.13713048,92.299,92.203,2.35686411]
[1645910720131,44.13713048,92.299,92.203,111.45686411]
[1645910720332,47.7825,92.318,92.204,5.3786692]
[1645910720535,47.7825,92.318,92.205,174.46]
[1645910720735,24.6098,92.349,92.211,174.46]
[1645910720934,47.641,92.348,92.221,174.46]
[1645910721134,43.70439035,92.348,92.223,174.46]
[1645910721336,54.57404533,92.347,92.225,174.46]
[1645910721542,54.57404533,92.347,92.231,109.1]
[1645910721735,54.57404533,92.347,92.241,109.1]
[1645910721935,54.57404533,92.347,92.25,16.2569]